bitfinex/quotes_BTCUSD_20230115
["timestamp","ask_amount","ask_price","bid_price","bid_amount"]
[1673744595690,2.03373142,20779.0,20778.0,0.00711899]
[1673744595945,2.33373142,20779.0,20778.0,0.00711899]
[1673744596201,2.33373142,20779.0,20778.0,0.00042031]
[1673744596476,2.80783359,20779.0,20778.0,0.00042031]
[1673744596836,3.28503528,20779.0,20778.0,0.00042031]
[1673744597268,3.28503528,20779.0,20774.0,0.0031814]
[1673744597557,0.1571,20775.0,20774.0,0.0031814]
[1673744597805,2.224815,20775.0,20774.0,0.0031814]
[1673744598063,2.233315,20775.0,20774.0,0.0031814]
[1673744598592,2.350315,20775.0,20774.0,0.0091814]
[1673744599159,3.02399092,20775.0,20774.0,0.0091814]
[1673744599462,3.62359092,20775.0,20774.0,0.0091814]
[1673744600246,3.65669092,20775.0,20774.0,0.0091814]
[1673744600940,3.65669092,20775.0,20774.0,0.006]
[1673744600942,3.65669092,20775.0,20773.0,0.00953504]
[1673744601223,1.03819659,20774.0,20773.0,0.00953504]
[1673744601458,2.46336359,20774.0,20773.0,0.00953504]
[1673744601723,2.06496359,20774.0,20773.0,0.00953504]
[1673744601993,1.270967,20774.0,20773.0,0.00953504]
[1673744602238,1.59086142,20774.0,20773.0,0.00953504]
[1673744602739,1.76133031,20774.0,20773.0,0.00953504]
[1673744602994,1.89733031,20774.0,20773.0,0.00953504]
[1673744604050,1.81716585,20774.0,20773.0,0.00953504]
[1673744604607,1.68726585,20774.0,20773.0,0.00953504]
[1673744605674,1.82219828,20774.0,20773.0,0.00953504]
[1673744606203,2.4420927,20774.0,20773.0,0.00953504]
[1673744606707,2.5713927,20774.0,20773.0,0.00953504]
[1673744606955,3.2185927,20774.0,20773.0,0.00953504]
[1673744610163,0.00905027,20772.0,20769.0,0.00919435]
[1673744610419,0.9416,20770.0,20769.0,0.00919435]
[1673744610668,1.41232142,20770.0,20769.0,0.00919435]
[1673744610928,1.243253,20770.0,20769.0,0.00919435]
[1673744611712,1.380253,20770.0,20769.0,0.00919435]
[1673744611963,1.243253,20770.0,20769.0,0.00919435]
[1673744612210,1.379253,20770.0,20769.0,0.00919435]
[1673744612545,1.249753,20770.0,20769.0,0.00919435]
[1673744612998,1.6165536,20770.0,20769.0,0.00919435]
[1673744613507,1.44901454,20770.0,20769.0,0.00919435]
[1673744613809,1.71491454,20770.0,20769.0,0.00919435]
[1673744614064,2.33480896,20770.0,20769.0,0.00919435]
[1673744614845,2.19880896,20770.0,20769.0,0.00919435]
[1673744615372,2.33580896,20770.0,20769.0,0.00919435]
[1673744616133,2.19880896,20770.0,20769.0,0.00919435]
[1673744616425,2.33580896,20770.0,20769.0,0.00919435]
[1673744616641,2.19880896,20770.0,20769.0,0.00919435]
[1673744617149,2.00054742,20770.0,20769.0,0.00919435]
[1673744617423,1.54969191,20770.0,20769.0,0.1226127]
[1673744617689,1.41129191,20770.0,20769.0,0.00919435]
[1673744617933,1.54829191,20770.0,20769.0,0.00919435]
[1673744618190,1.9230468,20770.0,20769.0,0.00919435]
[1673744618966,1.78000789,20770.0,20769.0,0.00919435]
[1673744619210,2.37410231,20770.0,20769.0,0.00919435]
[1673744619467,1.91720789,20770.0,20769.0,0.00919435]
[1673744619715,2.850304,20770.0,20769.0,0.00919435]
[1673744620336,1.68459711,20770.0,20769.0,0.00899435]
[1673744620494,1.55589711,20770.0,20769.0,0.00899435]
[1673744620751,0.58447111,20770.0,20769.0,0.00899435]
[1673744621006,0.58447111,20770.0,20769.0,0.1224127]
[1673744621007,0.278327,20770.0,20769.0,0.1224127]
[1673744621268,0.136,20770.0,20769.0,0.00899435]
[1673744621524,0.51349716,20770.0,20769.0,0.00899435]
[1673744621827,0.65582416,20770.0,20769.0,0.00899435]
[1673744622082,0.51349716,20770.0,20769.0,0.00899435]
[1673744622346,0.66432416,20770.0,20769.0,0.00899435]
[1673744623205,0.52199716,20770.0,20769.0,0.00899435]
[1673744623708,1.00346016,20770.0,20769.0,0.00899435]
[1673744623958,1.14578716,20770.0,20769.0,0.00899435]
[1673744624782,1.49125016,20770.0,20769.0,0.00899435]
[1673744625047,1.13728716,20770.0,20769.0,0.00999435]
[1673744625300,0.97268888,20770.0,20769.0,0.00899435]
[1673744625607,0.97268888,20770.0,20769.0,0.00999435]
[1673744625608,1.76557888,20770.0,20769.0,0.00999435]
[1673744625871,1.38808172,20770.0,20769.0,0.00999435]
[1673744626131,1.81798172,20770.0,20769.0,0.00999435]
[1673744626401,1.58047614,20770.0,20769.0,0.00899435]
[1673744626651,1.52598172,20770.0,20769.0,0.00999435]
[1673744627204,1.412253,20770.0,20769.0,0.00999435]
[1673744627970,1.412193,20770.0,20769.0,0.00999435]
[1673744629959,2.03208742,20770.0,20769.0,0.00096373]
[1673744630213,2.17324759,20770.0,20769.0,0.00096373]
[1673744630477,2.64734976,20770.0,20769.0,0.00096373]
[1673744630740,3.12455145,20770.0,20769.0,0.00096373]
[1673744631789,3.33629171,20770.0,20769.0,0.00096373]
[1673744632088,3.4783635,20770.0,20769.0,0.00096373]
[1673744632620,3.4783635,20770.0,20769.0,7.3e-07]
[1673744632621,3.93729557,20770.0,20769.0,7.3e-07]
[1673744632875,3.93729557,20770.0,20768.0,0.00927834]
[1673744632876,0.7495,20769.0,20766.0,0.00927834]
[1673744633140,0.51730923,20767.0,20766.0,0.00927834]
[1673744633651,2.57807465,20767.0,20766.0,0.00927834]
[1673744633658,2.58657465,20767.0,20766.0,0.00927834]
[1673744633909,3.33704771,20767.0,20766.0,0.00927834]
[1673744634159,3.52770249,20767.0,20766.0,0.00927834]
[1673744634939,3.45602439,20767.0,20766.0,0.00927834]
[1673744635200,3.81033363,20767.0,20766.0,0.00927834]
[1673744635452,3.45602124,20767.0,20766.0,0.00927834]
[1673744635709,3.13148915,20767.0,20766.0,0.00927834]
[1673744636002,3.45612994,20767.0,20766.0,0.00927834]
[1673744636471,3.81043918,20767.0,20766.0,0.00927834]
[1673744637273,3.34402541,20767.0,20766.0,0.00927834]
[1673744638286,3.45592942,20767.0,20766.0,0.00927834]
[1673744638603,3.45595359,20767.0,20766.0,0.00927834]
[1673744638806,3.13148915,20767.0,20766.0,0.00927834]
[1673744639057,1.87913635,20767.0,20766.0,0.00927834]
[1673744639310,2.12820792,20767.0,20766.0,0.00927834]
[1673744639557,2.02080416,20767.0,20766.0,0.00927834]
[1673744640060,2.64069858,20767.0,20766.0,0.00927834]
[1673744640318,2.34069858,20767.0,20766.0,0.00927834]
[1673744640566,2.12114563,20767.0,20766.0,0.00927834]
[1673744640829,1.80125121,20767.0,20766.0,0.00927834]
[1673744641130,1.80125121,20767.0,20766.0,0.12269669]
[1673744641131,0.142327,20767.0,20766.0,0.12269669]
[1673744641327,0.79363739,20768.0,20766.0,0.00927834]
[1673744641575,0.50502275,20767.0,20766.0,0.00927834]
[1673744642087,1.28340961,20767.0,20766.0,0.00927834]
[1673744642579,0.1,20766.0,20764.0,0.00493639]
[1673744642834,0.963158,20765.0,20764.0,0.00493639]
[1673744643119,1.105485,20765.0,20764.0,0.00493639]
[1673744645868,1.97554723,20765.0,20764.0,0.00493639]
[1673744646122,2.28977702,20765.0,20764.0,0.00493639]
[1673744646379,2.50226768,20765.0,20764.0,0.00493639]
[1673744646613,2.28977702,20765.0,20764.0,0.00493639]
[1673744646879,2.50226768,20765.0,20764.0,0.00493639]
[1673744647620,2.77389774,20765.0,20764.0,0.00493639]
[1673744647878,2.63207851,20765.0,20764.0,0.00493639]
[1673744648794,2.77378538,20765.0,20764.0,0.00493639]
[1673744648993,2.56140708,20765.0,20764.0,0.00493639]
[1673744649235,2.7737852,20765.0,20764.0,0.00493639]
[1673744649485,2.49038733,20765.0,20764.0,0.00493639]
[1673744649745,2.63198882,20765.0,20764.0,0.00493639]
[1673744650002,2.63198882,20765.0,20764.0,0.00050991]
[1673744650263,2.33197707,20765.0,20764.0,0.00050991]
[1673744650518,2.63197707,20765.0,20764.0,0.00050991]
[1673744650764,2.58027707,20765.0,20764.0,0.00050991]
[1673744652288,3.18792493,20765.0,20764.0,0.00050991]
[1673744652528,3.18792493,20765.0,20764.0,3.587e-05]
[1673744653317,3.74402662,20765.0,20764.0,3.587e-05]
[1673744653563,3.74402662,20765.0,20762.0,0.00943283]
[1673744653564,0.06256413,20763.0,20762.0,0.00943283]
[1673744653816,2.78682396,20763.0,20762.0,0.00943283]
[1673744654090,3.15839693,20763.0,20762.0,8.3e-07]
[1673744654348,2.78765703,20763.0,20762.0,8.3e-07]
[1673744654596,3.91548782,20763.0,20762.0,8.3e-07]
[1673744655180,4.38080243,20763.0,20762.0,8.3e-07]
[1673744655420,4.38064278,20763.0,20762.0,8.3e-07]
[1673744656462,3.07735114,20763.0,20762.0,8.3e-07]
[1673744656713,2.54537911,20763.0,20762.0,8.3e-07]
[1673744656978,2.70872729,20763.0,20762.0,8.3e-07]
[1673744657240,3.00872729,20763.0,20762.0,8.3e-07]
[1673744657498,3.07943985,20763.0,20762.0,8.3e-07]
[1673744657765,3.91487109,20763.0,20762.0,8.3e-07]
[1673744658522,4.21557109,20763.0,20762.0,8.3e-07]
[1673744658764,4.00349348,20763.0,20762.0,8.3e-07]
[1673744659312,4.21540762,20763.0,20762.0,8.3e-07]
[1673744659554,4.21540762,20763.0,20762.0,0.11341918]
[1673744659555,3.26997545,20763.0,20762.0,0.11341918]
[1673744659799,3.26997545,20763.0,20762.0,8.3e-07]
[1673744659800,2.59686918,20763.0,20762.0,8.3e-07]
[1673744660294,2.56756224,20763.0,20762.0,8.3e-07]
[1673744660540,3.52263873,20763.0,20762.0,8.3e-07]
[1673744660800,4.05992071,20763.0,20762.0,8.3e-07]
[1673744661047,3.77709164,20763.0,20762.0,8.3e-07]
[1673744661325,4.07689164,20763.0,20761.0,9.1e-07]
[1673744661595,0.96088498,20762.0,20761.0,9.1e-07]
[1673744661844,1.49336098,20762.0,20761.0,9.1e-07]
[1673744662614,0.632476,20762.0,20761.0,0.11341926]
[1673744662928,0.51474913,20763.0,20761.0,0.19231926]
[1673744662929,2.413e-05,20763.0,20761.0,0.19231926]
[1673744663115,2.413e-05,20763.0,20761.0,0.41341926]
[1673744663368,2.413e-05,20763.0,20762.0,0.321135]
[1673744663644,2.413e-05,20763.0,20762.0,0.621135]
[1673744663895,2.413e-05,20763.0,20762.0,0.321135]
[1673744664168,2.413e-05,20763.0,20762.0,0.421135]
[1673744664669,2.413e-05,20763.0,20762.0,0.721135]
[1673744664922,2.413e-05,20763.0,20762.0,0.421135]
[1673744665178,2.413e-05,20763.0,20762.0,0.721135]
[1673744665485,2.413e-05,20763.0,20762.0,0.800035]
[1673744666184,2.413e-05,20763.0,20762.0,1.177235]
[1673744666745,2.413e-05,20763.0,20762.0,1.65990819]
[1673744667213,2.413e-05,20763.0,20762.0,2.76637638]
[1673744668247,2.413e-05,20763.0,20762.0,2.62317074]
[1673744668749,2.413e-05,20763.0,20762.0,2.76637638]
[1673744668998,2.413e-05,20763.0,20762.0,1.06090819]
[1673744669759,2.413e-05,20763.0,20762.0,1.84235719]
[1673744670013,2.413e-05,20763.0,20762.0,3.39631608]
[1673744670266,6e-05,20768.0,20763.0,0.1]
[1673744670543,6e-05,20768.0,20767.0,0.1578]
[1673744670777,6e-05,20768.0,20767.0,0.59226635]
[1673744671041,6e-05,20768.0,20767.0,0.399948]
[1673744672296,6e-05,20768.0,20767.0,0.151792]
[1673744672549,6e-05,20768.0,20766.0,0.0786]
[1673744672805,0.48157,20768.0,20766.0,0.0786]
[1673744673056,0.96308,20768.0,20766.0,0.0786]
[1673744673584,0.01418672,20767.0,20766.0,0.0786]
[1673744673843,0.49571972,20767.0,20766.0,0.0786]
[1673744674420,0.49571972,20767.0,20766.0,0.07957534]
[1673744674618,0.01418672,20767.0,20766.0,0.0786]
[1673744675663,0.01418672,20767.0,20766.0,0.399735]
[1673744675919,0.01418672,20767.0,20766.0,0.699735]
[1673744676174,0.01418672,20767.0,20766.0,0.778435]
[1673744676433,0.01418672,20767.0,20766.0,1.359991]
[1673744676689,0.01418672,20767.0,20766.0,1.841547]
[1673744676976,0.01418672,20767.0,20766.0,2.141347]
[1673744678785,6.72e-06,20767.0,20766.0,4.02498622]
[1673744679047,6.72e-06,20767.0,20766.0,2.61854869]
[1673744679804,6e-05,20768.0,20766.0,2.61854869]
[1673744680054,6e-05,20768.0,20767.0,1.528923]
[1673744680310,6e-05,20768.0,20767.0,2.49296429]
[1673744680570,6e-05,20768.0,20767.0,1.59346429]
[1673744681359,6e-05,20768.0,20767.0,0.81193129]
[1673744681614,6e-05,20768.0,20767.0,0.23039829]
[1673744682166,6e-05,20768.0,20767.0,0.33039829]
[1673744682428,6e-05,20768.0,20767.0,0.151023]
[1673744682696,6e-05,20768.0,20766.0,0.0791]
[1673744682697,0.48157,20768.0,20766.0,0.0791]
[1673744683215,0.48157,20768.0,20764.0,0.0789]
[1673744683480,0.67229595,20768.0,20764.0,0.0789]
[1673744683739,1.15380595,20768.0,20764.0,0.0789]
[1673744684858,0.96308,20768.0,20764.0,0.0789]
[1673744685377,0.35766405,20767.0,20764.0,0.3789]
[1673744685874,0.83920405,20767.0,20765.0,0.321135]
[1673744686171,0.83920405,20767.0,20764.0,0.3789]
[1673744686427,0.83920405,20767.0,20764.0,0.0789]
[1673744687965,0.48157,20768.0,20764.0,0.0789]
[1673744688232,0.48157,20768.0,20766.0,0.0789]
[1673744688233,6e-05,20768.0,20766.0,0.0789]
[1673744688485,6e-05,20768.0,20767.0,0.500035]
[1673744688993,6e-05,20768.0,20767.0,0.902668]
[1673744689261,6e-05,20768.0,20767.0,0.802668]
[1673744690259,6e-05,20768.0,20767.0,1.284201]
[1673744690264,0.32910243,20772.0,20768.0,0.1]
[1673744690517,0.00920801,20772.0,20769.0,0.11341835]
[1673744690775,0.38838318,20771.0,20769.0,0.11341835]
[1673744691030,0.38838318,20771.0,20768.0,0.962992]
[1673744691801,0.38838318,20771.0,20769.0,0.321135]
[1673744692067,0.38838318,20771.0,20770.0,0.072757]
[1673744692357,0.38838318,20771.0,20769.0,0.481484]
[1673744692879,0.51038318,20771.0,20769.0,0.481484]
[1673744693133,0.38838318,20771.0,20768.0,0.48149]
[1673744693398,0.51138318,20771.0,20768.0,0.48149]
[1673744693645,0.31768214,20770.0,20768.0,0.48149]
[1673744694182,0.31768214,20770.0,20769.0,0.321135]
[1673744694432,0.31768214,20770.0,20767.0,0.481513]
[1673744694700,0.97205701,20772.0,20768.0,0.3]
[1673744694964,0.122,20771.0,20769.0,0.321135]
[1673744695297,0.122,20771.0,20770.0,0.321135]
[1673744695706,0.122,20771.0,20768.0,0.860405]
[1673744695969,0.19072595,20770.0,20766.0,0.481534]
[1673744696223,0.962883,20771.0,20763.0,0.561006]
[1673744696224,0.19072595,20769.0,20763.0,0.561006]
[1673744696489,0.19072595,20768.0,20763.0,0.0794]
[1673744696732,0.19072595,20768.0,20766.0,0.0789]
[1673744696987,0.481506,20769.0,20767.0,0.072856]
[1673744697252,0.481471,20770.0,20768.0,0.321069]
[1673744697501,0.481494,20769.0,20766.0,0.19231835]
[1673744697821,0.481494,20769.0,20766.0,0.3789]
[1673744698003,0.476494,20769.0,20767.0,0.321135]
[1673744698266,0.476494,20769.0,20768.0,0.072801]
[1673744698517,0.476494,20769.0,20766.0,0.3789]
[1673744698760,0.95798,20769.0,20766.0,0.0789]
[1673744699004,0.97098,20769.0,20766.0,0.0789]
[1673744699243,0.95798,20769.0,20766.0,0.0789]
[1673744699739,0.97298,20769.0,20766.0,0.0789]
[1673744700487,0.496486,20769.0,20766.0,0.0789]
[1673744700733,0.015,20769.0,20767.0,0.321135]
[1673744700995,0.015,20769.0,20768.0,0.072801]
[1673744701241,0.32756542,20768.0,20766.0,0.0789]
[1673744701504,0.32756542,20768.0,20764.0,0.55988]
[1673744701505,0.32694042,20768.0,20764.0,0.55988]
[1673744701754,0.51766637,20768.0,20764.0,1.041465]
[1673744702001,0.19072595,20768.0,20765.0,1.58430691]
[1673744702250,0.37743716,20769.0,20766.0,0.072843]
[1673744702495,0.37743716,20769.0,20765.0,0.48255338]
[1673744702496,0.36243716,20769.0,20767.0,0.321103]
[1673744702753,0.36363279,20768.0,20765.0,0.48255338]
[1673744703269,0.36363279,20768.0,20766.0,0.321135]
[1673744703546,0.36363279,20768.0,20765.0,0.48255338]
[1673744703794,0.014,20768.0,20766.0,0.96316683]
[1673744704087,1.25322208,20770.0,20767.0,0.321135]
[1673744704293,1.25322208,20770.0,20768.0,0.072802]
[1673744704294,0.37136025,20769.0,20768.0,0.072802]
[1673744704547,0.015,20768.0,20766.0,0.0789]
[1673744705394,0.015,20768.0,20767.0,0.321135]
[1673744705586,0.76879374,20768.0,20762.0,1.43466147]
[1673744705851,0.47720169,20765.0,20761.0,0.43069278]
[1673744706096,0.75878507,20761.0,20758.0,1.84046743]
[1673744706346,0.75878507,20761.0,20758.0,0.00998391]
[1673744706347,0.94855975,20760.0,20758.0,0.00998391]
[1673744706608,0.94855975,20760.0,20758.0,0.07560391]
[1673744706858,0.19072595,20759.0,20758.0,0.00998391]
[1673744707109,0.59040995,20759.0,20758.0,0.00998391]
[1673744707361,0.399684,20759.0,20758.0,0.00998391]
[1673744707878,0.881402,20759.0,20758.0,0.00998391]
[1673744708132,0.981402,20759.0,20758.0,0.00998391]
[1673744708897,1.67712844,20759.0,20757.0,0.01133305]
[1673744709191,1.429147,20758.0,20757.0,0.01133305]
[1673744709393,0.07549192,20756.0,20755.0,0.01133305]
[1673744709648,2.54564387,20756.0,20755.0,0.01133305]
[1673744709898,0.1,20755.0,20753.0,4.62e-06]
[1673744710160,1.636437,20754.0,20753.0,4.62e-06]
[1673744710426,1.99267398,20754.0,20753.0,4.62e-06]
[1673744711402,3.25990162,20754.0,20746.0,0.01251798]
[1673744711676,0.0784,20747.0,20746.0,0.01251798]
[1673744711918,1.93018595,20747.0,20746.0,0.01251798]
[1673744712676,1.73946,20747.0,20746.0,0.01251798]
[1673744714184,1.86346,20747.0,20746.0,0.01251798]
[1673744714449,1.73946,20747.0,20746.0,0.01251798]
[1673744714966,1.86346,20747.0,20746.0,0.01251798]
[1673744717268,0.605997,20747.0,20746.0,0.57206732]
[1673744717506,0.560828,20750.0,20746.0,0.57206732]
[1673744717765,0.124,20747.0,20746.0,0.45864897]
[1673744718557,0.560828,20750.0,20746.0,0.45864897]
[1673744718799,0.560828,20750.0,20747.0,0.4543522]
[1673744718800,0.550828,20750.0,20747.0,0.4543522]
[1673744720355,0.593828,20750.0,20747.0,0.4543522]
[1673744720669,0.0689,20750.0,20747.0,0.4543522]
[1673744720888,0.1799,20750.0,20747.0,0.4543522]
[1673744721110,0.85256395,20750.0,20746.0,0.0120515]
[1673744721358,1.44836205,20750.0,20746.0,0.37709806]
[1673744721620,1.33449095,20750.0,20746.0,0.37709806]
[1673744722119,0.321184,20749.0,20746.0,0.37709806]
[1673744722373,0.963928,20749.0,20746.0,0.37709806]
[1673744723128,0.963928,20749.0,20746.0,0.0120515]
[1673744723129,0.1574,20747.0,20746.0,0.0120515]
[1673744723375,1.97321478,20747.0,20746.0,0.0120515]
[1673744723637,0.01472831,20745.0,20743.0,0.46370747]
[1673744723887,0.01472831,20745.0,20738.0,0.87173249]
[1673744723888,1.285318,20744.0,20738.0,0.70116249]
[1673744724128,0.71828869,20743.0,20738.0,0.70116249]
[1673744724432,2.08847895,20742.0,20738.0,0.43771174]
[1673744724651,0.40579495,20741.0,20739.0,0.36981746]
[1673744724916,1.285504,20740.0,20739.0,0.36981746]
[1673744725162,0.96432,20740.0,20739.0,0.36981746]
[1673744725411,0.96432,20740.0,20739.0,0.50192168]
[1673744725952,0.96432,20740.0,20738.0,0.01316249]
[1673744726204,0.96432,20740.0,20738.0,0.36891364]
[1673744726452,0.96432,20740.0,20738.0,0.01316249]
[1673744726704,1.07632,20740.0,20738.0,0.01316249]
[1673744726980,0.96432,20740.0,20738.0,0.01316249]
[1673744727226,1.07532,20740.0,20738.0,0.37243759]
[1673744727495,0.59316,20740.0,20739.0,0.4212108]
[1673744727747,0.111,20740.0,20739.0,0.4212108]
[1673744728541,0.00486034,20741.0,20739.0,0.4212108]
[1673744729049,0.31210332,20744.0,20739.0,0.4212108]
[1673744729305,0.612244,20745.0,20740.0,0.11341835]
[1673744729550,0.44245669,20745.0,20741.0,0.11341835]
[1673744729818,0.1302,20745.0,20741.0,0.11341835]
[1673744730064,0.92443883,20745.0,20741.0,0.11341835]
[1673744730321,0.00490658,20744.0,20741.0,0.11341835]
[1673744730569,0.00490658,20744.0,20740.0,0.482154]
[1673744730869,0.19563253,20744.0,20740.0,0.482154]
[1673744731066,0.19563253,20744.0,20740.0,0.964314]
[1673744731317,0.30863253,20744.0,20740.0,0.964314]
[1673744731565,0.30863253,20744.0,20741.0,0.39538517]
[1673744731812,0.11790658,20744.0,20741.0,0.39538517]
[1673744732315,0.00490927,20743.0,20741.0,0.39538517]
[1673744732557,0.04228672,20743.0,20741.0,0.39538517]
[1673744733300,0.52438472,20743.0,20741.0,0.39538517]
[1673744733548,0.04228672,20743.0,20741.0,0.39538517]
[1673744733807,0.15528672,20743.0,20741.0,0.39538517]
[1673744734063,0.15037745,20743.0,20741.0,0.11341835]
[1673744734314,0.15037745,20743.0,20742.0,0.11341835]
[1673744734578,0.15037745,20743.0,20742.0,0.89553135]
[1673744734822,0.15037745,20743.0,20742.0,0.782113]
[1673744735066,0.15037745,20743.0,20742.0,0.882113]
[1673744735315,0.03737745,20743.0,20742.0,0.882113]
[1673744735569,0.04837745,20743.0,20742.0,0.882113]
[1673744735812,0.03737745,20743.0,20742.0,0.882113]
[1673744736089,0.01007745,20743.0,20742.0,0.882113]
[1673744736347,0.31221079,20750.0,20742.0,0.882113]
[1673744736589,0.35572595,20750.0,20742.0,1.22848772]
[1673744736836,0.19072595,20750.0,20743.0,0.1]
[1673744737109,0.19072595,20750.0,20745.0,0.964082]
[1673744737358,1.06863662,20752.0,20746.0,0.3]
[1673744737617,0.00499585,20749.0,20747.0,0.963956]
[1673744737863,0.41031614,20751.0,20745.0,0.482021]
[1673744738137,0.1302,20749.0,20743.0,0.49536725]
[1673744738402,0.40579495,20748.0,20743.0,0.49536725]
[1673744738643,0.1,20746.0,20741.0,0.47476485]
[1673744738907,0.19072595,20746.0,20743.0,0.41858783]
[1673744739176,0.61215,20749.0,20740.0,1.84741]
[1673744739177,0.31594924,20749.0,20740.0,1.84741]
[1673744739423,0.19072595,20748.0,20741.0,0.11341835]
[1673744739710,0.19072595,20747.0,20742.0,0.11341835]
[1673744739921,0.01,20746.0,20742.0,0.11341835]
[1673744740161,0.19072595,20746.0,20743.0,0.00100173]
[1673744740417,0.00489562,20749.0,20743.0,0.00100173]
[1673744740715,0.19562157,20749.0,20744.0,0.11341835]
[1673744741047,0.00489562,20749.0,20745.0,0.11341835]
[1673744741220,0.01489562,20749.0,20745.0,0.11341835]
[1673744741466,0.00489562,20749.0,20745.0,0.11341835]
[1673744741724,0.00489562,20749.0,20742.0,0.4297]
[1673744741725,0.96893239,20748.0,20742.0,0.4297]
[1673744741976,0.19072595,20747.0,20743.0,0.47190751]
[1673744742241,0.19072595,20746.0,20743.0,0.47190751]
[1673744742490,0.67275395,20746.0,20743.0,0.47190751]
[1673744742748,1.15477395,20746.0,20743.0,0.47190751]
[1673744743000,1.15477395,20746.0,20742.0,0.41542116]
[1673744743777,1.15477395,20746.0,20738.0,0.00316249]
[1673744743778,1.46599341,20746.0,20738.0,0.00316249]
[1673744744036,0.50232333,20745.0,20740.0,0.48415748]
[1673744744298,1.63695995,20744.0,20740.0,0.48415748]
[1673744744539,1.446234,20744.0,20740.0,0.59757583]
[1673744744798,0.49202,20746.0,20740.0,0.11341835]
[1673744745054,0.19072595,20746.0,20741.0,0.11341835]
[1673744745314,0.01,20745.0,20742.0,0.11341835]
[1673744745579,0.00491366,20746.0,20741.0,0.3]
[1673744745847,0.01,20744.0,20742.0,0.11341835]
[1673744746148,0.31555425,20748.0,20741.0,0.1302]
[1673744746403,0.01,20746.0,20742.0,0.59552235]
[1673744746927,0.01,20746.0,20742.0,0.964217]
[1673744747172,0.20072595,20746.0,20742.0,0.964217]
[1673744747466,0.19555379,20746.0,20743.0,0.36570722]
[1673744747723,0.00482784,20746.0,20743.0,0.36570722]
[1673744747981,0.00482784,20746.0,20743.0,0.84779022]
[1673744748250,0.01482784,20746.0,20743.0,1.32988022]
[1673744748514,0.00482784,20746.0,20743.0,1.32988022]
[1673744749040,0.01582784,20746.0,20743.0,1.32988022]
[1673744749299,0.01582784,20746.0,20743.0,0.84779722]
[1673744749561,0.01582784,20746.0,20743.0,0.36570722]
[1673744749815,0.00495813,20745.0,20743.0,0.36570722]
[1673744750595,0.011,20746.0,20743.0,0.36570722]
[1673744750864,0.83513416,20748.0,20743.0,0.36570722]
[1673744751127,0.00488951,20747.0,20744.0,0.12442004]
[1673744751589,0.00488951,20747.0,20744.0,0.00100168]
[1673744751843,0.01597459,20746.0,20743.0,0.36570722]
[1673744752102,0.19570054,20746.0,20743.0,0.36570722]
[1673744752355,0.00497459,20746.0,20743.0,0.36570722]
[1673744753386,0.01597459,20746.0,20743.0,0.36570722]
[1673744753904,0.00482534,20745.0,20743.0,0.36570722]
[1673744756201,0.01582534,20745.0,20743.0,0.36570722]
[1673744757207,0.011,20745.0,20743.0,0.36570722]
[1673744759024,0.011,20745.0,20743.0,1.08758936]
[1673744759253,0.011,20745.0,20744.0,0.3]
[1673744759499,0.011,20745.0,20743.0,0.482081]
[1673744759759,0.011,20745.0,20744.0,1.364134]
[1673744760005,0.011,20745.0,20744.0,1.34936475]
[1673744760743,0.011,20745.0,20744.0,0.86729775]
[1673744760997,0.49453896,20749.0,20744.0,1.264134]
[1673744760998,0.31001896,20749.0,20744.0,1.264134]
[1673744761240,0.62312656,20750.0,20744.0,0.964134]
[1673744761241,0.011,20745.0,20744.0,0.964134]
[1673744761496,0.011,20745.0,20744.0,1.264134]
[1673744761740,0.011,20745.0,20744.0,1.364134]
[1673744762229,0.18394,20750.0,20744.0,1.364134]
[1673744762230,0.30962585,20750.0,20744.0,1.264134]
[1673744762487,1.12909654,20751.0,20745.0,0.4]
[1673744762737,1.12909654,20751.0,20746.0,1.35655443]
[1673744763500,0.006,20750.0,20746.0,1.47997279]
[1673744763757,1.12909654,20751.0,20746.0,1.08743336]
[1673744764026,0.102,20751.0,20748.0,0.1302]
[1673744764267,0.102,20751.0,20750.0,0.1302]
[1673744764518,0.102,20751.0,20750.0,1.012127]
[1673744765024,0.01260248,20755.0,20750.0,1.012127]
[1673744765309,0.0076808,20755.0,20751.0,0.12341836]
[1673744765547,0.0076808,20755.0,20752.0,0.963752]
[1673744765800,0.0076808,20755.0,20753.0,0.3]
[1673744766054,0.0076808,20755.0,20754.0,0.481834]
[1673744766313,0.0136808,20755.0,20754.0,0.481834]
[1673744766661,0.0076808,20755.0,20754.0,0.481834]
[1673744767351,0.0076808,20755.0,20754.0,1.263668]
[1673744767851,0.0716808,20755.0,20754.0,1.266668]
[1673744768878,0.07158051,20755.0,20754.0,1.74766464]
[1673744769132,0.07158051,20755.0,20754.0,1.496068]
[1673744769614,0.07158051,20755.0,20754.0,1.396068]
[1673744770631,0.26230646,20755.0,20754.0,0.35604389]
[1673744770901,0.07158051,20755.0,20754.0,0.30604389]
[1673744771656,0.07158051,20755.0,20753.0,0.35712867]
[1673744771900,0.38283346,20755.0,20749.0,0.481945]
[1673744772144,0.38283346,20755.0,20752.0,0.35680107]
[1673744772145,0.19072595,20754.0,20752.0,0.35680107]
[1673744772424,0.481839,20754.0,20753.0,0.36031251]
[1673744772686,0.07158051,20755.0,20753.0,0.48373087]
[1673744772956,0.00758051,20755.0,20754.0,0.38959397]
[1673744773182,0.01358051,20755.0,20754.0,0.38959397]
[1673744774194,0.00758051,20755.0,20754.0,0.38959397]
[1673744774956,0.07458051,20755.0,20754.0,0.39159397]
[1673744778647,0.11279664,20755.0,20754.0,0.002]
[1673744778905,1.07641864,20755.0,20754.0,0.002]
[1673744779160,0.07458051,20755.0,20754.0,0.002]
[1673744780167,0.07458051,20755.0,20754.0,0.06762]
[1673744780930,0.07458051,20755.0,20754.0,0.002]
[1673744781443,0.12342939,20755.0,20754.0,0.002]
[1673744781706,1.08705139,20755.0,20750.0,0.46345475]
[1673744781963,0.51190995,20754.0,20750.0,0.46345475]
[1673744782220,1.15444995,20753.0,20750.0,0.46345475]
[1673744782480,1.15444995,20753.0,20749.0,0.36966426]
[1673744782730,1.15444995,20753.0,20750.0,0.48251935]
[1673744782990,0.963724,20753.0,20751.0,0.41404763]
[1673744783242,0.481856,20754.0,20749.0,0.1]
[1673744783493,0.19072595,20754.0,20749.0,0.22341836]
[1673744783752,0.19772595,20754.0,20750.0,0.022]
[1673744784024,0.53302425,20755.0,20750.0,0.42341836]
[1673744784025,0.05138009,20753.0,20750.0,0.42341836]
[1673744784276,0.05138009,20753.0,20750.0,0.3]
[1673744784555,0.05138009,20753.0,20751.0,0.022]
[1673744784556,0.04290567,20752.0,20751.0,0.022]
[1673744784816,0.04290567,20752.0,20749.0,1.44932881]
[1673744785073,0.04290567,20752.0,20750.0,0.503926]
[1673744785330,0.04290567,20752.0,20750.0,0.481926]